bitfinex/quotes_ETHUSD_20220101
["timestamp","ask_amount","ask_price","bid_price","bid_amount"]
[1641012217662,0.216153,3716.8,3716.5,8.968]
[1641012218070,0.00170527,3716.7,3716.5,8.968]
[1641012218466,0.00113684,3716.6,3716.5,8.968]
[1641012225849,0.67274,3717.1,3716.5,8.968]
[1641012226245,0.0022737,3717.0,3716.5,8.968]
[1641012226445,0.0022737,3717.0,3716.5,7.718]
[1641012226646,0.00170527,3716.9,3716.5,7.718]
[1641012227146,0.00113685,3716.8,3716.5,7.718]
[1641012227547,0.00170527,3716.9,3716.5,7.718]
[1641012228011,0.780836,3717.0,3716.5,7.718]
[1641012228012,0.00113685,3716.8,3716.5,7.718]
[1641012228412,0.00170527,3716.9,3716.7,1.25]
[1641012228611,0.00170527,3716.9,3716.8,7.7176]
[1641012228810,0.108076,3717.0,3716.8,7.7176]
[1641012229310,0.108076,3717.0,3716.9,1.25]
[1641012229510,0.108076,3717.0,3716.9,8.9674]
[1641012229710,0.1103497,3717.0,3716.9,8.9674]
[1641012238622,0.1103497,3717.0,3716.9,9.7714]
[1641012238919,0.1103497,3717.0,3716.9,34.05726396]
[1641012240661,0.1103497,3717.0,3716.9,9.7714]
[1641012246509,0.1103497,3717.0,3716.9,10.0714]
[1641012246757,0.1103497,3717.0,3716.9,10.3714]
[1641012246958,0.1103497,3717.0,3716.9,11.3714]
[1641012248164,0.0022737,3717.0,3716.9,11.3714]
[1641012250715,0.0022737,3717.0,3716.9,11.0714]
[1641012250919,0.0022737,3717.0,3716.9,11.3714]
[1641012251321,0.0022737,3717.0,3716.9,9.7714]
[1641012251722,0.1103497,3717.0,3716.9,8.9674]
[1641012255499,1.43582286,3717.0,3716.9,8.9674]
[1641012255800,0.1103497,3717.0,3716.9,8.9674]
[1641012258420,0.4103497,3717.0,3716.9,8.9674]
[1641012259716,0.408076,3717.0,3716.9,8.9674]
[1641012262155,0.3,3717.0,3716.9,8.9674]
[1641012265400,0.408076,3717.0,3716.9,8.9674]
[1641012266610,0.708076,3717.0,3716.9,8.9674]
[1641012269013,0.816152,3717.0,3716.9,8.9674]
[1641012272259,0.816152,3717.0,3716.9,7.7174]
[1641012272660,4.55,3716.9,3715.6,2.53769626]
[1641012272905,0.816152,3717.0,3715.6,2.53769626]
[1641012272906,0.673087,3716.4,3715.6,2.53769626]
[1641012273110,6.673087,3716.4,3716.1,0.00284211]
[1641012273309,6.673087,3716.4,3716.3,1.25]
[1641012273709,7.673087,3716.4,3716.3,1.25170527]
[1641012273909,9.019317,3716.4,3716.3,1.25170527]
[1641012274509,9.019317,3716.4,3716.3,0.00170527]
[1641012274910,9.019317,3716.4,3716.0,0.00341054]
[1641012275114,0.67307,3716.2,3716.0,0.00341054]
[1641012275309,3.79433358,3716.1,3716.0,0.00341054]
[1641012275710,4.79433358,3716.1,3716.0,0.00341054]
[1641012281305,2.36108356,3716.1,3716.0,0.00341054]
[1641012281719,1.36108356,3716.1,3716.0,0.00341054]
[1641012281903,2.36108356,3716.1,3716.0,0.00341054]
[1641012282509,1.36108356,3716.1,3716.0,0.00341054]
[1641012282706,2.36108356,3716.1,3716.0,0.00341054]
[1641012283109,1.081147,3716.2,3716.0,0.00341054]
[1641012283311,1.1445013,3716.1,3716.0,0.00341054]
[1641012284356,1.1445013,3716.1,3716.0,1.25341054]
[1641012284960,3.33605015,3716.1,3716.0,1.25341054]
[1641012285159,1.1445013,3716.1,3716.0,1.25341054]
[1641012285563,3.33334293,3716.1,3716.0,1.25341054]
[1641012286960,1.1445013,3716.1,3716.0,1.25341054]
[1641012287161,1.081147,3716.2,3716.0,1.25341054]
[1641012287761,2.19550159,3716.1,3716.0,1.25341054]
[1641012288410,2.19550159,3716.1,3716.0,0.00341054]
[1641012288607,1.081147,3716.2,3716.0,0.00341054]
[1641012288810,0.781147,3716.2,3716.0,1.38275387]
[1641012289006,0.108077,3716.2,3716.0,1.38275387]
[1641012289407,0.108077,3716.2,3716.1,1.25]
[1641012289807,0.108077,3716.2,3716.1,6.6319]
[1641012292260,0.781007,3716.2,3716.1,6.6319]
[1641012293064,1.081007,3716.2,3716.1,6.6319]
[1641012293266,4.52909779,3716.2,3716.1,6.6319]
[1641012293568,5.52909779,3716.2,3716.1,6.6319]
[1641012295423,4.52909779,3716.2,3716.1,6.6319]
[1641012296430,1.081007,3716.2,3716.1,6.6319]
[1641012298333,3.25698954,3716.2,3716.1,6.6319]
[1641012298836,3.26787026,3716.2,3716.1,6.6319]
[1641012299470,3.26787026,3716.2,3716.1,1.24787]
[1641012300072,3.26787026,3716.2,3715.7,0.00511581]
[1641012300275,0.67303,3715.9,3715.7,0.00511581]
[1641012300472,1.3460655,3715.9,3715.7,0.00511581]
[1641012300974,1.40983095,3715.8,3715.7,0.00511581]
[1641012302275,4.23649342,3715.8,3715.7,0.00511581]
[1641012304321,2.00983095,3715.8,3715.7,0.00511581]
[1641012304720,0.781107,3715.9,3715.7,0.00511581]
[1641012305623,0.108077,3715.9,3715.7,3.47418525]
[1641012305822,0.6727589,3717.4,3715.9,0.36084061]
[1641012306021,2.10748216,3717.8,3716.4,3.83459386]
[1641012306220,2.10748216,3717.8,3716.5,7.81802148]
[1641012306426,0.00113685,3716.8,3716.5,6.2653]
[1641012306654,0.00113685,3716.8,3716.5,8.70192148]
[1641012306856,0.00113685,3716.8,3716.5,6.2653]
[1641012307054,0.00113685,3716.8,3716.6,1.3722716]
[1641012307256,0.00113685,3716.8,3716.7,5.3811]
[1641012307656,0.00113685,3716.8,3716.7,6.3811]
[1641012307856,0.00113685,3716.8,3716.7,8.92019088]
[1641012308660,0.00113685,3716.8,3716.7,9.22019088]
[1641012308963,0.00113685,3716.8,3716.7,25.28019088]
[1641012309160,1.285e-05,3716.9,3716.8,4.55]
[1641012309360,1.285e-05,3716.9,3716.8,12.70426411]
[1641012309560,1.285e-05,3716.9,3716.8,13.70426411]
[1641012309961,1.285e-05,3716.9,3716.8,29.46426411]
[1641012310162,0.06274706,3717.9,3716.9,4.55]
[1641012310163,5.991e-05,3717.9,3716.9,4.55]
[1641012310427,6.18,3719.7,3718.9,1.25847444]
[1641012310428,7.257903,3719.7,3718.9,1.25847444]
[1641012310627,7.257903,3719.7,3719.0,5.3778]
[1641012311228,6.18,3719.7,3719.0,5.3778]
[1641012312226,6.18,3719.7,3719.5,1.21932668]
[1641012312428,6.18,3719.7,3719.6,5.3769]
[1641012312828,6.19648428,3719.7,3719.6,5.3769]
[1641012314462,6.19648428,3719.7,3719.6,5.38058819]
[1641012314664,6.19648428,3719.7,3719.6,5.53334633]
[1641012315063,6.19648428,3719.7,3719.6,5.52974633]
[1641012315064,9.59064435,3719.7,3719.6,5.52974633]
[1641012315864,9.59064435,3719.7,3719.6,0.14961633]
[1641012316064,11.23569435,3719.7,3719.6,0.14961633]
[1641012316463,0.6724856,3719.5,3719.2,0.06193244]
[1641012316663,2.5783465,3719.4,3719.2,0.06193244]
[1641012316865,2.59312551,3719.4,3719.2,0.06193244]
[1641012317063,4.56421059,3719.3,3719.2,0.06193244]
[1641012317265,4.56421059,3719.3,3717.8,0.0016]
[1641012317266,7.05538277,3719.3,3717.8,0.0016]
[1641012317462,0.6725,3718.6,3718.4,0.06193322]
[1641012317666,1.388195,3718.7,3718.4,0.06193322]
[1641012317932,0.0096632,3718.5,3718.4,0.06193322]
[1641012318136,1.388195,3718.7,3718.4,5.44053322]
[1641012318137,0.01023162,3718.6,3718.4,5.44053322]
[1641012318337,0.0096632,3718.5,3718.4,5.44053322]
[1641012319336,0.0096632,3718.5,3718.4,5.3786]
[1641012323262,0.0096632,3718.5,3718.4,6.3786]
[1641012323663,0.0096632,3718.5,3718.4,6.3802]
[1641012323961,0.0096632,3718.5,3718.4,5.3802]
[1641012324264,0.0096632,3718.5,3718.4,6.3802]
[1641012324462,4.74184148,3718.9,3718.5,5.23425874]
[1641012324666,4.74184148,3718.9,3718.6,6.3784]
[1641012324865,0.00170527,3718.8,3718.6,6.3784]
[1641012325412,0.00113685,3718.7,3718.6,6.3784]
[1641012328424,0.00113685,3718.7,3718.6,6.38]
[1641012329258,0.00113685,3718.7,3718.6,5.38]
[1641012329463,0.00113685,3718.7,3718.6,6.38]
[1641012337069,0.10921285,3718.7,3718.6,6.38]
[1641012339676,0.10921285,3718.7,3718.6,5.38]
[1641012351430,0.05921285,3718.7,3718.6,5.38]
[1641012363115,0.05921285,3718.7,3718.6,6.3194]
[1641012364722,1e-08,3718.7,3718.6,6.3194]
[1641012367581,1e-08,3718.7,3718.6,7.3194]
[1641012368589,1e-08,3718.7,3718.6,6.3194]
[1641012377488,1e-08,3718.7,3718.6,5.38]
[1641012379630,1.34494001,3718.7,3718.6,5.38]
[1641012381685,1e-08,3718.7,3718.6,5.38]
[1641012384786,0.67242,3718.8,3718.6,5.38]
[1641012385818,0.780497,3718.8,3718.6,5.38]
[1641012401623,0.40385122,3718.5,3717.9,1.41803169]
[1641012401822,2.4571,3717.9,3717.8,0.06175637]
[1641012402022,1.04189918,3717.9,3717.8,0.06175637]
[1641012402427,3.82752772,3717.9,3717.8,0.06175637]
[1641012402621,4.02705505,3717.9,3717.8,0.06175637]
[1641012402840,7.00806714,3717.9,3717.8,0.06175637]
[1641012403022,5.52705505,3717.9,3717.8,0.06175637]
[1641012403222,5.52705505,3717.9,3717.0,1.83730363]
[1641012403423,1.30528082,3717.2,3717.0,1.83730363]
[1641012403621,1.30528082,3717.2,3717.1,0.00909478]
[1641012404024,1.49090522,3717.1,3716.5,1.83730363]
[1641012404274,1.49090522,3717.1,3716.6,5.38384212]
[1641012404674,1.49090522,3717.1,3716.7,0.00227369]
[1641012404874,1.49090522,3717.1,3716.8,5.381]
[1641012404875,2.83642522,3717.1,3716.8,5.381]
[1641012405077,1.53114441,3717.1,3716.8,5.381]
[1641012405275,0.18562441,3717.1,3716.9,0.00113685]
[1641012411131,0.85833441,3717.1,3716.9,0.00113685]
[1641012420569,0.18562441,3717.1,3716.9,0.00113685]
[1641012421168,0.18562441,3717.1,3717.0,5.3807]
[1641012422372,0.18562441,3717.1,3717.0,22.37678727]
[1641012422373,2.441e-05,3717.1,3717.0,22.37678727]
[1641012422570,2.441e-05,3717.1,3717.0,23.37678727]
[1641012422768,0.0571,3717.9,3717.0,22.1407]
[1641012423330,0.00397896,3717.8,3717.0,22.1407]
[1641012423728,0.00341054,3717.7,3717.0,26.72808985]
[1641012424126,0.00284212,3717.6,3717.0,26.72808985]
[1641012424327,0.00284212,3717.6,3717.5,3.85406941]
[1641012424528,0.0571,3717.9,3717.5,7.04346941]
[1641012424926,0.00397896,3717.8,3717.5,7.04346941]
[1641012425328,0.00341054,3717.7,3717.5,5.9894]
[1641012425729,0.00284212,3717.6,3717.5,5.9894]
[1641012426963,0.00284212,3717.6,3717.5,7.03422244]
[1641012430619,0.00994212,3717.9,3717.6,2.7]
[1641012430818,0.00994212,3717.9,3717.7,5.3797]
[1641012431018,0.00113684,3717.8,3717.7,5.3797]
[1641012436275,0.00113684,3717.8,3717.7,8.45232505]
[1641012439322,0.00113684,3717.8,3717.7,10.27902505]
[1641012439521,0.00113684,3717.8,3717.7,30.62513755]
[1641012439922,0.00113684,3717.8,3717.7,33.36688263]
[1641012440124,0.00113684,3717.8,3717.7,33.06688263]
[1641012440322,0.00113684,3717.8,3717.7,33.36688263]
[1641012441524,0.40385122,3718.5,3717.8,4.6]
[1641012441772,0.40385122,3718.5,3718.2,0.67225]
[1641012441965,0.00341055,3718.4,3718.3,7.80499149]
[1641012442171,0.00341055,3718.4,3718.3,9.87609149]
[1641012442567,0.00341055,3718.4,3718.3,9.57609149]
[1641012442970,0.00341055,3718.4,3718.3,8.57609149]
[1641012443972,0.00341055,3718.4,3718.3,8.46941441]
[1641012445528,0.00341055,3718.4,3718.3,6.1499]
[1641012445728,0.00341055,3718.4,3718.3,5.3788]
[1641012445932,0.00341055,3718.4,3718.3,7.68242838]
[1641012446130,0.00341055,3718.4,3718.3,7.68895493]
[1641012446329,0.00341055,3718.4,3718.3,7.68748389]
[1641012446730,0.00341055,3718.4,3718.3,5.38248951]
[1641012447732,0.00341055,3718.4,3718.3,7.69443072]
[1641012447933,0.00341055,3718.4,3718.3,5.38248951]
[1641012448338,0.00341055,3718.4,3718.3,7.72414554]
[1641012450872,0.00341055,3718.4,3718.3,5.38248951]
[1641012456438,0.00341055,3718.4,3718.3,7.66527769]
[1641012457079,0.00341055,3718.4,3718.3,5.38248951]
[1641012458982,0.00341055,3718.4,3718.3,7.67658666]
[1641012459184,0.00341055,3718.4,3718.3,5.38248951]
[1641012462028,0.00341055,3718.4,3718.3,7.67063102]
[1641012463330,0.00341055,3718.4,3718.3,8.30233102]
[1641012463530,0.00341055,3718.4,3718.3,8.31569965]
[1641012463730,0.00341055,3718.4,3718.3,6.01418951]
[1641012464370,0.00341055,3718.4,3718.3,5.38248951]
[1641012466274,0.00341055,3718.4,3718.3,7.67447059]
[1641012466676,0.00341055,3718.4,3718.3,5.38248951]
[1641012467175,0.00341055,3718.4,3718.3,7.68707324]
[1641012469721,0.00341055,3718.4,3718.3,5.38248951]
[1641012470723,0.00341055,3718.4,3718.3,7.67265214]
[1641012471905,0.40385122,3718.5,3718.3,7.67265214]
[1641012472106,0.40385122,3718.5,3718.4,0.67229]
[1641012472306,0.40385122,3718.5,3718.4,6.05099]
[1641012472511,0.40783019,3718.5,3718.4,6.05099]
[1641012473710,0.40783019,3718.5,3718.4,5.3787]
[1641012489584,0.40783019,3718.5,3718.4,7.19968279]
[1641012491263,0.40783019,3718.5,3718.4,5.3787]
[1641012496692,2.73520192,3718.5,3718.4,5.3787]
[1641012498432,0.40783019,3718.5,3718.4,5.3787]
[1641012500732,2.62063968,3718.5,3718.4,5.3787]
[1641012501977,0.40783019,3718.5,3718.4,5.3787]
[1641012502577,0.40385122,3718.5,3718.4,5.3787]
[1641012544736,0.35385122,3718.5,3718.4,5.3787]
[1641012568035,0.108077,3718.8,3718.7,4.79857739]
[1641012568233,0.06135421,3719.3,3718.9,1.09638261]
[1641012568437,0.06135421,3719.3,3719.0,5.3778]
[1641012568832,0.16943121,3719.3,3719.0,5.3778]
[1641012569275,0.108077,3719.3,3719.0,6.05001]
[1641012569480,0.0467228,3719.3,3719.0,6.05001]
[1641012570479,0.0467228,3719.3,3719.1,2.44110121]
[1641012570679,0.0467228,3719.3,3719.2,6.04966]
[1641012570882,0.0467228,3719.3,3719.2,8.45811966]
[1641012571081,0.05524916,3719.3,3719.2,8.45811966]
[1641012571780,0.05524916,3719.3,3719.2,6.04966]
[1641012572181,0.05524916,3719.3,3719.2,8.37169024]
[1641012572380,0.05524916,3719.3,3719.2,8.41441161]
[1641012572780,0.05524916,3719.3,3719.2,6.04966]
[1641012573030,0.05524916,3719.3,3719.2,8.39233063]
[1641012573629,0.05524916,3719.3,3719.2,8.39621022]
[1641012574329,0.05524916,3719.3,3719.2,6.05353959]
[1641012574525,0.05524916,3719.3,3719.2,8.37998594]
[1641012575225,0.05524916,3719.3,3719.2,9.74615172]
[1641012576230,0.05524916,3719.3,3719.2,8.37998594]
[1641012577490,0.05524916,3719.3,3719.2,9.74615172]
[1641012580841,0.05524916,3719.3,3719.2,8.37998594]
[1641012582438,0.05524916,3719.3,3719.2,6.05353959]
[1641012582638,0.05524916,3719.3,3719.2,9.69904933]
[1641012582838,0.05524916,3719.3,3719.2,7.41970537]
[1641012583042,0.05524916,3719.3,3719.2,9.87986985]
[1641012583242,0.05524916,3719.3,3719.2,7.41970537]
[1641012583444,0.05524916,3719.3,3719.2,7.45790765]
[1641012583642,0.05524916,3719.3,3719.2,6.09174187]
[1641012585487,0.108077,3719.4,3719.3,4.5552]
[1641012585686,0.108077,3719.4,3719.3,12.39276448]
[1641012585885,3.20945255,3721.0,3719.3,12.43274698]
[1641012586085,3.20945255,3721.0,3720.1,0.67197]
[1641012586283,0.00909477,3720.9,3720.2,5.3761]
[1641012586691,0.00852635,3720.8,3720.7,1.00044002]
[1641012586887,0.00852635,3720.8,3720.7,6.37574002]
[1641012597460,0.00852635,3720.8,3720.7,9.27381177]
[1641012597661,0.00852635,3720.8,3720.7,7.37554002]
[1641012598863,0.11660235,3720.8,3720.7,7.37554002]
[1641012605447,0.11660235,3720.8,3720.7,8.37554002]
[1641012605648,0.11660235,3720.8,3720.7,7.37554002]
[1641012608889,0.00852635,3720.8,3720.7,9.3441917]
[1641012609092,0.00852635,3720.8,3720.7,9.35779176]
[1641012609492,0.00852635,3720.8,3720.7,10.35779176]
[1641012609692,0.06134921,3721.7,3721.1,0.67182]
[1641012609893,0.06134921,3721.7,3721.2,5.3746]
[1641012610097,0.00454739,3721.6,3721.2,5.3746]
[1641012610538,0.00397896,3721.5,3721.2,5.3746]
[1641012611039,0.00341054,3721.4,3721.2,5.3746]
[1641012611442,0.00284212,3721.3,3721.2,5.3746]
[1641012611641,0.00284212,3721.3,3721.2,6.04638]
[1641012611842,0.00625266,3721.3,3721.2,6.04638]
[1641012614047,0.00625266,3721.3,3721.2,7.04638]
[1641012617799,0.00625266,3721.3,3721.2,5.3746]
[1641012619438,0.11432866,3721.3,3721.2,5.3746]
[1641012619640,0.11432866,3721.3,3721.2,6.04641]
[1641012626739,0.11432866,3721.3,3721.2,7.05223084]
[1641012626939,0.11432866,3721.3,3721.2,7.09066702]
[1641012627944,0.11432866,3721.3,3721.2,11.67258165]
[1641012628146,0.11432866,3721.3,3721.2,11.63414547]
[1641012628346,0.108076,3721.4,3721.3,4.55]
[1641012628544,0.108076,3721.4,3721.3,10.9245]
[1641012630497,0.108076,3721.4,3721.3,6.3745]
[1641012630899,0.216152,3721.4,3721.3,6.3745]
[1641012631396,0.216152,3721.4,3721.3,5.3745]
[1641012637087,0.108076,3721.4,3721.3,5.3745]
[1641012637688,0.108076,3721.4,3721.3,6.72677686]
[1641012638695,0.108076,3721.4,3721.3,5.3745]
[1641012641146,0.108076,3721.6,3721.3,5.3745]
[1641012641544,0.108076,3721.6,3721.4,0.00284212]
[1641012641743,0.108076,3721.6,3721.5,5.3742]
[1641012642146,0.108076,3721.6,3721.5,5.3764737]
[1641012648643,2.3525091,3721.6,3721.5,5.3764737]
[1641012648841,0.779986,3721.7,3721.5,5.3764737]
[1641012649243,0.779986,3721.7,3721.6,0.00170527]
[1641012650145,1e-08,3721.7,3721.6,0.00170527]
[1641012653500,2.41135897,3721.7,3721.6,0.00170527]
[1641012653698,2.51943597,3721.7,3721.6,0.00170527]
[1641012654101,3.11943597,3721.7,3721.6,0.00170527]
[1641012656441,4.11943597,3721.7,3721.6,0.00170527]
[1641012658350,2.51943597,3721.7,3721.6,0.00170527]
[1641012660415,4.11943597,3721.7,3721.6,0.00170527]
[1641012661819,4.22751297,3721.7,3721.6,0.00170527]
[1641012665745,0.21615401,3721.7,3721.6,0.00170527]
[1641012666147,0.21615401,3721.7,3721.6,5.37570527]
[1641012671040,0.10807701,3721.7,3721.6,5.37570527]
[1641012671842,0.77999701,3721.7,3721.6,5.37570527]
[1641012672042,1e-08,3721.7,3721.6,5.37570527]
[1641012673248,0.10807601,3721.7,3721.6,5.37570527]
[1641012679145,0.10807601,3721.7,3721.6,5.374]
[1641012683300,1e-08,3721.7,3721.6,5.374]
[1641012684906,4.93684248,3721.7,3721.6,5.374]
[1641012685108,3.68081248,3721.7,3721.6,5.374]
[1641012685307,3.68081248,3721.7,3721.1,0.0617523]
[1641012685308,5.37983711,3721.5,3721.1,0.0617523]
[1641012685552,0.67208,3721.3,3720.3,1.35227686]
[1641012685749,0.67208,3721.3,3721.2,0.00397897]
[1641012685950,2.09234337,3721.3,3721.2,0.00397897]
[1641012687151,0.3,3721.2,3720.0,0.01080005]
[1641012687352,0.67219,3720.6,3720.0,0.01080005]
[1641012687952,2.31244359,3720.5,3720.0,0.01080005]
[1641012689604,2.31244359,3720.5,3719.7,0.01250532]
[1641012689806,0.67221,3720.3,3719.7,0.01250532]
[1641012690007,0.67221,3720.3,3719.9,1.19907006]
[1641012690407,0.67221,3720.3,3720.0,0.01080005]
[1641012691011,3.04402667,3720.7,3720.0,0.01080005]
[1641012691407,3.34402667,3720.7,3720.0,0.01080005]
[1641012691808,0.67221,3720.3,3720.0,0.01080005]
[1641012695253,0.67221,3720.3,3719.8,5.3763]
[1641012695254,0.67221,3720.3,3719.9,0.01136847]
[1641012696051,0.780286,3720.3,3719.9,0.01136847]
[1641012697217,1.380286,3720.3,3719.9,0.01136847]
[1641012697416,0.67222,3720.1,3719.9,0.01136847]
[1641012697616,0.67222,3720.1,3720.0,5.3763]
[1641012697815,0.67222,3720.1,3720.0,5.37998773]
[1641012698019,0.67222,3720.1,3720.0,5.39078778]
[1641012699022,0.108076,3720.3,3720.0,5.39078778]
[1641012699221,0.108076,3720.3,3720.0,6.23008778]
[1641012699421,0.108076,3720.3,3720.1,0.01023163]
[1641012704698,0.108076,3720.3,3720.1,2.3632478]
[1641012704900,7.6e-05,3720.3,3720.2,4.61233463]
[1641012705098,7.6e-05,3720.3,3720.2,24.14902035]
[1641012705297,7.6e-05,3720.3,3720.2,27.39555961]
[1641012705497,0.000152,3720.4,3720.3,4.6]
[1641012705697,0.000152,3720.4,3720.3,11.00748952]
[1641012705896,0.000152,3720.4,3720.3,11.0165843]
[1641012706098,1e-08,3721.7,3720.3,11.0165843]
[1641012706298,1e-08,3721.7,3720.4,1.0]
[1641012706504,1e-08,3721.7,3721.0,1.32939074]
[1641012706698,1e-08,3721.7,3721.1,5.3748]
[1641012706899,1e-08,3721.7,3721.1,5.37934739]
[1641012709352,0.108077,3721.6,3721.1,5.37934739]
[1641012720406,5.67983711,3721.5,3721.1,5.37934739]
[1641012720606,5.97983711,3721.5,3721.1,5.37934739]
[1641012721506,0.67203,3721.3,3721.1,5.37934739]
[1641012723549,0.67203,3721.3,3721.1,5.38303398]
[1641012726252,0.97203,3721.3,3721.1,5.38303398]
[1641012726694,0.3,3721.2,3721.1,5.38303398]
[1641012736204,0.408076,3721.2,3721.1,5.38303398]
[1641012739966,0.516152,3721.2,3721.1,5.38303398]
[1641012740367,0.816152,3721.2,3721.1,5.38303398]
[1641012757008,0.816152,3721.2,3721.1,5.37848659]
[1641012757207,0.516152,3721.2,3721.1,5.37848659]
[1641012757408,0.816152,3721.2,3721.1,5.37848659]
[1641012757611,0.216152,3721.2,3721.1,5.37848659]
[1641012761747,5.37983711,3721.5,3721.1,5.37848659]
[1641012761748,4.22131095,3721.5,3721.1,5.37848659]
[1641012762147,4.22131095,3721.5,3721.2,0.00397897]
[1641012762348,4.22131095,3721.5,3721.3,5.3745]
[1641012762748,4.22131095,3721.5,3721.4,1.38145556]
[1641012762949,4.32938795,3721.5,3721.4,1.38145556]
[1641012769355,4.32938795,3721.5,3721.4,1.38514194]
[1641012769855,4.32938795,3721.5,3721.4,0.0065285]
[1641012771257,6.56433312,3721.5,3721.4,0.0065285]
[1641012771457,7.86433312,3721.5,3721.4,0.0065285]
[1641012791054,5.62938795,3721.5,3721.4,0.0065285]
[1641012792052,7.8454833,3721.5,3721.4,0.0065285]
[1641012792252,5.62938795,3721.5,3721.4,0.0065285]
[1641012792754,5.62938795,3721.5,3721.4,0.00368638]
[1641012794209,7.84311275,3721.5,3721.4,0.00368638]
[1641012794417,5.62938795,3721.5,3721.4,0.00368638]
[1641012794814,7.8695715,3721.5,3721.4,0.00368638]
[1641012799261,5.62938795,3721.5,3721.4,0.00368638]
[1641012800462,7.85668477,3721.5,3721.4,0.00368638]
[1641012800962,7.85668477,3721.5,3721.3,5.3745]
[1641012800963,23.61668477,3721.5,3721.3,3.35427937]
[1641012801164,0.6722645,3720.8,3720.2,3.8059]
[1641012801363,1.344529,3720.9,3719.6,3.2892]
[1641012801364,2.38804144,3720.7,3719.7,1.41197686]
[1641012801563,1.5,3720.5,3720.3,0.00909478]
[1641012801811,3.75317966,3720.4,3720.3,0.00909478]
[1641012802007,4.05317966,3720.4,3720.3,0.00909478]
[1641012802210,5.72546966,3720.4,3720.3,0.00909478]
[1641012802407,0.6724041,3720.0,3719.6,1.35227686]
[1641012802606,0.6724041,3720.0,3719.8,0.00284212]
[1641012802607,0.9724041,3720.0,3719.8,0.00284212]
[1641012803414,0.3,3720.0,3719.6,0.00397896]
[1641012803612,0.67237,3719.8,3719.5,0.00454739]
[1641012803812,0.67237,3719.8,3719.6,5.3768]
[1641012803813,1.5,3719.7,3719.6,5.3768]
[1641012804112,1.5,3719.7,3719.6,5.38077896]
[1641012804313,0.12467613,3719.7,3719.6,5.38077896]
[1641012809306,0.12467613,3719.7,3719.6,6.05777896]
[1641012810709,0.12467613,3719.7,3719.6,8.41571776]
[1641012812208,0.12467613,3719.7,3719.6,6.05777896]
[1641012817207,0.12467613,3719.7,3719.6,5.38077896]
[1641012824505,0.12467613,3719.7,3719.6,6.73636226]
[1641012825112,0.12467613,3719.7,3719.6,5.38077896]
[1641012825711,0.79695613,3719.7,3719.6,5.38077896]
[1641012827311,0.79695613,3719.7,3719.6,6.73636226]
[1641012828457,0.79695613,3719.7,3719.6,5.38077896]
[1641012829061,0.79695613,3719.7,3719.6,6.73636226]
[1641012829861,0.79695613,3719.7,3719.6,5.38077896]
[1641012832006,0.79695613,3719.7,3719.6,6.73636226]
[1641012832607,0.79695613,3719.7,3719.6,5.38077896]
[1641012833417,0.79695613,3719.7,3718.0,6.0751547]
[1641012833418,0.65530687,3719.3,3718.0,6.0751547]
[1641012833616,4.6,3719.0,3718.0,6.0751547]
[1641012833814,18.21983372,3719.0,3718.0,6.0751547]
[1641012834015,4.6,3718.9,3717.3,0.29840376]
[1641012834216,0.01231442,3718.3,3717.3,0.29840376]
[1641012834417,0.01231442,3718.3,3717.6,1.06967099]
[1641012834813,0.6727048,3718.1,3717.7,0.01080005]
[1641012835014,0.9727048,3718.1,3717.7,0.01080005]
[1641012835469,1.2727048,3718.1,3717.7,0.01080005]
[1641012835662,1.34554,3717.9,3717.7,0.01080005]
[1641012835865,2.0182601,3717.9,3717.5,0.0119369]
[1641012836062,0.3,3717.8,3717.5,0.0119369]
[1641012836564,0.6,3717.8,3717.5,0.0119369]
[1641012837564,0.6,3717.8,3717.5,1.15681262]
[1641012837763,0.67273,3717.7,3717.5,1.15681262]
[1641012837968,0.67273,3717.7,3717.6,0.01136847]
[1641012838769,0.67273,3718.6,3717.6,0.01136847]
[1641012838770,2.3451383,3719.0,3717.7,4.6]
[1641012838968,4.5124,3719.1,3717.8,2.4962604]
[1641012838969,3.8398,3719.1,3717.8,2.4962604]
[1641012839208,7.14910488,3719.2,3717.8,2.50649203]
[1641012839409,7.14910488,3719.2,3717.9,0.0096632]
[1641012839410,1.34495,3718.9,3717.9,0.0096632]
[1641012839610,1.34495,3718.9,3718.8,1.10636241]
[1641012840009,1.34495,3718.9,3718.8,0.00454739]
[1641012840409,1.34495,3718.9,3718.8,1.004]
[1641012840610,0.67245,3719.0,3718.8,1.004]
[1641012840810,0.67245,3719.0,3718.8,1.00854739]
[1641012841013,0.67245,3719.0,3718.9,0.00397897]
[1641012841709,1.34487,3719.2,3718.9,1.15488227]
[1641012841710,0.67237,3719.2,3718.9,1.15488227]
[1641012842109,0.67237,3719.2,3719.0,0.00341054]
[1641012842968,0.67237,3719.2,3719.1,5.3776]
[1641012843374,0.67237,3719.2,3719.1,5.38044212]
[1641012843576,0.97237,3719.2,3719.1,5.38044212]
[1641012844073,1.27237,3719.2,3719.1,5.38044212]
[1641012844473,1.27237,3719.2,3719.1,8.08044212]
[1641012847118,4.52001908,3719.2,3719.1,8.08044212]
[1641012847315,3.52001908,3719.2,3719.1,8.08044212]
[1641012847515,4.52001908,3719.2,3719.1,8.08044212]
[1641012848918,2.27237,3719.2,3719.1,8.08044212]
[1641012849119,1.27237,3719.2,3719.1,8.08044212]
[1641012851064,2.27237,3719.2,3719.1,8.08044212]
[1641012852663,1.27237,3719.2,3719.1,8.08044212]
[1641012852866,2.27237,3719.2,3719.1,8.08044212]
[1641012854410,1.27237,3719.2,3719.1,8.08044212]
[1641012855114,2.27237,3719.2,3719.1,8.08044212]
[1641012855313,1.27237,3719.2,3719.1,8.08044212]
[1641012855513,2.27237,3719.2,3719.1,8.08044212]
[1641012859869,3.73507877,3719.2,3719.1,8.08044212]
[1641012860071,2.27237,3719.2,3719.1,8.08044212]
[1641012860473,3.84233985,3719.2,3719.1,8.08044212]
[1641012860870,2.27237,3719.2,3719.1,8.08044212]
[1641012862007,2.27237,3719.2,3719.1,2.69976212]
[1641012863014,3.86849468,3719.2,3719.1,2.69976212]
[1641012863416,4.2,3719.1,3718.0,7.5747]
[1641012863622,2.41892738,3718.6,3717.9,1.13023346]
[1641012863818,2.34631738,3718.6,3718.1,0.00568423]
[1641012864717,0.67261,3718.3,3718.1,0.00568423]
[1641012868562,1.6452647,3718.3,3718.1,0.00568423]
[1641012868962,0.67267,3717.9,3717.5,0.00909478]
[1641012869212,0.67267,3717.9,3717.4,0.0096632]
[1641012869213,0.97267,3717.9,3717.4,0.0096632]
[1641012869413,0.3,3717.9,3717.4,0.0096632]
[1641012869610,0.3,3717.9,3717.6,1.12999088]